bitfinex/quotes_ETHUSD_20250821
["timestamp","ask_amount","ask_price","bid_price","bid_amount"]
[1755814883040,0.002,4262.7,4262.6,10.51870682]
[1755814884518,0.002,4262.7,4262.6,10.21830682]
[1755814884720,0.1867,4262.7,4262.6,10.21830682]
[1755814885024,0.1867,4262.7,4262.6,6.27830682]
[1755814885321,0.002,4262.7,4262.6,10.21830682]
[1755814885615,0.002,4262.7,4262.6,6.27830682]
[1755814885822,0.002,4262.7,4262.6,10.21730682]
[1755814886812,0.002,4262.7,4262.6,10.96650682]
[1755814887032,0.002,4262.7,4262.6,12.22284562]
[1755814887336,0.002,4262.7,4262.6,18.96845703]
[1755814892237,0.002,4262.7,4262.6,12.22284562]
[1755814893247,0.002,4262.7,4262.6,8.28384562]
[1755814893608,0.002,4262.7,4262.6,12.22284562]
[1755814893809,0.002,4262.7,4262.6,8.28384562]
[1755814894130,0.002,4262.7,4262.6,12.22284562]
[1755814900945,0.002,4263.0,4262.9,9.75143233]
[1755814901143,0.002,4263.0,4262.9,19.36217196]
[1755814901433,0.002,4263.0,4262.9,19.83507196]
[1755814901642,0.002,4263.0,4262.9,19.92909496]
[1755814905537,0.002,4263.2,4263.0,6.00576589]
[1755814905869,0.002,4263.6,4263.0,6.00576589]
[1755814905870,0.002,4263.6,4263.4,2.3455458]
[1755814906038,0.6482,4263.5,4263.4,9.9435458]
[1755814906481,0.2974,4263.5,4263.4,9.9435458]
[1755814906834,0.2974,4263.5,4263.4,10.5917458]
[1755814908468,0.002,4263.5,4263.4,10.5917458]
[1755814908633,0.002,4263.5,4263.4,12.12005705]
[1755814911534,0.002,4263.5,4263.4,12.90355705]
[1755814912072,0.002,4263.5,4263.4,12.43065705]
[1755814912261,0.002,4263.5,4263.4,12.90355705]
[1755814913149,0.002,4263.5,4263.4,19.17626846]
[1755814913350,0.002,4263.5,4263.4,19.64916846]
[1755814915265,0.002,4263.5,4263.4,19.17626846]
[1755814915461,0.002,4263.5,4263.4,18.86466846]
[1755814916649,0.2142,4263.5,4263.4,18.86466846]
[1755814917844,0.002,4263.5,4263.4,12.11905705]
[1755814918082,0.002,4263.5,4263.4,10.5907458]
[1755814918083,0.2142,4263.5,4263.4,10.5907458]
[1755814918267,0.6465,4263.5,4263.4,10.5907458]
[1755814919968,0.2142,4263.5,4263.4,10.5907458]
[1755814921579,0.6496,4263.5,4263.4,10.5907458]
[1755814921951,0.6496,4263.5,4263.4,9.9307458]
[1755814922152,0.2142,4263.5,4263.4,9.9307458]
[1755814922970,0.002,4263.5,4263.4,9.9307458]
[1755814923156,0.002,4263.5,4263.4,12.60188596]
[1755814923798,0.002,4263.5,4263.4,12.12898596]
[1755814924170,0.002,4263.5,4263.4,12.60188596]
[1755814930697,0.002,4263.5,4263.4,16.89188596]
[1755814931875,1e-08,4263.6,4263.5,6.00549079]
[1755814932080,1e-08,4263.6,4263.5,14.13827384]
[1755814932578,1e-08,4263.6,4263.5,14.23228184]
[1755814933163,1e-08,4263.6,4263.5,10.65477043]
[1755814933570,0.31410001,4263.6,4263.5,10.65477043]
[1755814934305,1e-08,4263.6,4263.5,10.65477043]
[1755814935905,0.18760001,4263.6,4263.5,10.65477043]
[1755814937778,1e-08,4263.6,4263.5,10.65477043]
[1755814946524,1e-08,4263.6,4263.5,11.42167043]
[1755814950524,1e-08,4263.6,4263.5,10.95897043]
[1755814950815,1e-08,4263.6,4263.5,11.42167043]
[1755814953998,1e-08,4263.6,4263.5,11.42267043]
[1755814954387,1e-08,4263.6,4263.5,15.71267043]
[1755814955283,0.022,4263.8,4263.7,2.34538077]
[1755814955514,0.022,4263.8,4263.7,16.32919218]
[1755814955918,0.022,4263.8,4263.7,16.79189218]
[1755814956715,0.022,4263.8,4263.7,16.88589918]
[1755814957013,0.022,4263.8,4263.7,16.42319918]
[1755814957315,0.022,4263.8,4263.7,16.85665317]
[1755814959322,0.022,4263.8,4263.7,17.32265317]
[1755814960014,0.002,4264.1,4263.7,17.32265317]
[1755814960015,1e-08,4264.1,4264.0,6.00521575]
[1755814960211,1e-08,4264.1,4264.0,10.22811575]
[1755814960515,1e-08,4264.1,4264.0,12.03935591]
[1755814960718,1e-08,4264.1,4264.0,12.47315591]
[1755814967920,1e-08,4264.1,4264.0,36.21310591]
[1755814968136,1e-08,4264.1,4264.0,31.14003091]
[1755814968324,1e-08,4264.1,4264.0,24.39533791]
[1755814970528,1e-08,4264.1,4264.0,24.02835691]
[1755814970705,1e-08,4264.1,4264.0,24.02935691]
[1755814973331,1e-08,4264.1,4264.0,23.69434391]
[1755814973835,1e-08,4264.1,4264.0,27.98434391]
[1755814975397,0.4338,4265.7,4264.8,0.66]
[1755814975702,0.4338,4265.7,4265.6,0.66]
[1755814975929,0.6476,4265.7,4265.6,3.66]
[1755814976313,0.6476,4265.7,4265.6,6.70911508]
[1755814978736,0.6476,4265.7,4265.6,3.04911508]
[1755814979439,0.6476,4265.7,4265.6,6.04911508]
[1755814981863,0.002,4266.6,4265.6,8.03746637]
[1755814982014,0.84456572,4268.7,4267.2,0.1006]
[1755814982209,6.76561141,4268.8,4267.2,4.0426]
[1755814982210,0.2138,4267.3,4267.2,4.0426]
[1755814982412,0.6454,4267.3,4267.2,3.1006]
[1755814982667,1.38450114,4267.3,4267.2,3.1006]
[1755814982967,1.38450114,4267.3,4267.2,5.46749163]
[1755814983113,0.6454,4267.3,4267.2,3.805235]
[1755814987169,0.6474,4267.3,4267.2,3.805235]
[1755814987475,0.6474,4267.3,4267.2,3.704635]
[1755814987630,2.4504,4267.3,4267.2,0.704635]
[1755814991170,5.9711,4267.3,4267.2,0.704635]
[1755814992349,2.0188,4267.3,4267.2,0.704635]
[1755814993037,2.0231,4267.3,4267.2,0.704635]
[1755814996152,0.002,4267.3,4267.2,0.704635]
[1755814996541,0.002,4267.3,4267.2,4.017035]
[1755814996745,0.002,4267.3,4267.2,3.36049206]
[1755814996943,0.002,4267.3,4267.2,6.80389206]
[1755815001975,0.002,4267.3,4267.2,10.77289206]
[1755815004706,0.2175,4267.3,4267.2,6.04809206]
[1755815005197,0.2175,4267.3,4267.2,3.704635]
[1755815008205,0.6496,4267.3,4267.2,3.704635]
[1755815008491,0.2175,4267.3,4267.2,3.704635]
[1755815009286,0.6496,4267.3,4267.2,3.704635]
[1755815009487,0.6496,4267.3,4267.2,0.704635]
[1755815014101,0.6496,4267.3,4266.6,0.001]
[1755815014404,6.74561141,4267.0,4266.6,0.001]
[1755815014794,3.962,4266.9,4266.6,0.001]
[1755815014981,1.803,4266.8,4266.6,0.001]
[1755815015182,1.803,4266.8,4266.7,0.4434]
[1755815015593,2.0185,4266.8,4266.7,0.4434]
[1755815020753,2.4462,4266.8,4266.7,0.4434]
[1755815024694,2.0185,4266.8,4266.7,0.4434]
[1755815025031,2.4463,4266.8,4266.7,0.4434]
[1755815026412,2.0185,4266.8,4266.7,0.4434]
[1755815026614,2.4485,4266.8,4266.6,0.001]
[1755815026808,0.43,4266.7,4266.6,0.001]
[1755815027006,0.6477,4266.7,4266.6,0.001]
[1755815034017,0.6477,4266.7,4266.2,0.094007]
[1755815034228,6.74561141,4266.3,4266.2,0.094007]
[1755815034424,11.00431141,4266.3,4266.2,0.094007]
[1755815034631,11.00431141,4266.3,4266.1,0.001]
[1755815034804,0.3407,4266.2,4266.1,0.001]
[1755815035132,0.6464,4266.2,4266.1,0.001]
[1755815036338,4.2577,4266.2,4266.1,0.001]
[1755815037147,3.952,4266.2,4266.1,0.7496]
[1755815037445,6.74561141,4266.3,4266.1,0.7496]
[1755815037755,3.951,4266.2,4266.1,0.7496]
[1755815038728,6.74561141,4266.3,4266.1,0.7496]
[1755815038908,10.69661141,4266.2,4266.1,0.7496]
[1755815039112,10.69561141,4266.2,4266.1,0.7496]
[1755815042431,10.69561141,4266.2,4266.1,0.001]
[1755815042636,11.34071141,4266.2,4266.1,0.001]
[1755815043047,0.66,4266.1,4265.7,0.001]
[1755815043268,6.93581141,4265.8,4265.7,0.001]
[1755815043468,10.88681141,4265.8,4265.7,0.001]
[1755815043772,11.34181141,4265.8,4265.7,0.001]
[1755815043966,11.45887043,4265.8,4265.7,0.001]
[1755815044171,12.11887043,4265.8,4265.7,0.001]
[1755815045241,12.00181141,4265.8,4265.7,0.001]
[1755815046453,12.12088324,4265.8,4265.7,0.001]
[1755815046966,12.14088324,4265.8,4265.7,0.001]
[1755815049438,11.68588324,4265.8,4265.7,0.001]
[1755815050271,12.19150259,4265.8,4265.7,0.001]
[1755815051248,11.68288324,4265.8,4265.7,0.001]
[1755815051446,12.18855092,4265.8,4265.7,0.001]
[1755815054585,11.99835092,4265.8,4265.7,0.001]
[1755815055390,12.00025092,4265.8,4265.7,0.001]
[1755815055568,8.05225092,4265.8,4265.7,0.001]
[1755815055786,11.99825092,4265.8,4265.7,0.001]
[1755815056474,12.13002032,4265.8,4265.7,0.001]
[1755815057258,8.06304849,4265.8,4265.7,0.001]
[1755815057462,11.87727909,4265.8,4265.7,0.76]
[1755815057662,11.87627909,4265.8,4265.7,0.76]
[1755815057844,7.93127909,4265.8,4265.7,0.76]
[1755815058055,11.87627909,4265.8,4265.7,0.76]
[1755815058262,11.21627909,4265.8,4265.7,0.76]
[1755815058458,7.27127909,4265.8,4265.7,0.76]
[1755815058664,11.21727909,4265.8,4265.7,0.76]
[1755815061486,11.34909308,4265.8,4265.7,0.76]
[1755815061704,7.27127909,4265.8,4265.7,0.76]
[1755815061884,11.21627909,4265.8,4265.7,0.76]
[1755815062470,6.76561141,4265.8,4265.7,0.76]
[1755815062880,10.70961141,4265.8,4265.7,0.76]
[1755815063301,0.02,4265.8,4265.7,0.76]
[1755815063791,3.965,4265.8,4265.7,0.76]
[1755815064193,0.02,4265.8,4265.7,0.76]
[1755815064373,3.965,4265.8,4265.7,0.76]
[1755815067215,0.02,4265.8,4265.7,0.3067]
[1755815067391,11.00781141,4265.8,4265.7,0.001]
[1755815069472,11.00781141,4265.8,4265.7,0.001]
[1755815070412,11.66781141,4265.8,4265.7,0.001]
[1755815070588,12.52212997,4265.8,4265.7,0.001]
[1755815070793,12.17412997,4265.8,4265.7,0.001]
[1755815071884,12.30601705,4265.8,4265.7,0.001]
[1755815072479,12.30603565,4265.8,4265.7,0.001]
[1755815076509,11.21792997,4265.8,4265.7,0.76]
[1755815076679,10.71161141,4265.8,4265.7,0.76]
[1755815077224,6.76561141,4265.8,4265.7,0.76]
[1755815077411,10.71161141,4265.8,4265.7,0.76]
[1755815088539,10.71161141,4265.8,4265.7,0.3067]
[1755815090030,10.70561141,4265.8,4265.7,0.7656]
[1755815097041,3.96,4265.8,4265.7,0.7656]
[1755815098548,0.02,4265.8,4265.7,0.7656]
[1755815098743,3.957,4265.8,4265.7,0.7656]
[1755815112859,3.957,4265.8,4265.7,0.001]
[1755815113030,3.957,4265.8,4265.7,0.2977]
[1755815113231,3.957,4265.8,4265.7,0.7722]
[1755815116235,0.02,4265.8,4265.7,0.7722]
[1755815116439,3.957,4265.8,4265.7,0.2977]
[1755815117869,0.02,4265.8,4265.7,0.7722]
[1755815118072,3.957,4265.8,4265.7,0.7722]
[1755815118270,3.957,4265.8,4265.7,1.477253]
[1755815118471,3.957,4265.8,4265.7,1.002753]
[1755815118683,3.957,4265.8,4265.7,1.477253]
[1755815119662,0.02,4265.8,4265.7,1.477253]
[1755815119864,3.957,4265.8,4265.7,1.477253]
[1755815121281,3.957,4265.8,4265.7,1.002753]
[1755815122051,3.957,4265.8,4265.7,1.477253]
[1755815123843,0.02,4265.8,4265.7,1.477253]
[1755815124174,3.957,4265.8,4265.7,1.477253]
[1755815124381,3.957,4265.8,4265.7,1.002753]
[1755815126961,0.02,4265.8,4265.7,1.002753]
[1755815127155,3.956,4265.8,4265.7,1.002753]
[1755815127409,0.02,4265.8,4265.7,1.002753]
[1755815127613,3.956,4265.8,4265.7,1.002753]
[1755815127754,0.02,4265.8,4265.7,1.477253]
[1755815128110,3.956,4265.8,4265.7,1.477253]
[1755815131010,3.956,4265.8,4265.7,0.7722]
[1755815132881,3.956,4265.8,4265.7,0.2977]
[1755815133965,0.02,4265.8,4265.7,0.2977]
[1755815134168,3.956,4265.8,4265.7,0.2977]
[1755815134568,3.956,4265.8,4265.7,0.001]
[1755815135370,4.1745,4265.8,4265.7,0.001]
[1755815136268,3.956,4265.8,4265.7,0.001]
[1755815136888,3.956,4265.8,4265.7,0.2977]
[1755815137290,3.956,4265.8,4265.7,0.7722]
[1755815138190,3.956,4265.8,4265.7,1.477252]
[1755815138697,0.02,4265.8,4265.7,3.81213312]
[1755815138866,3.956,4265.8,4265.7,6.81213312]
[1755815139877,0.02,4265.8,4265.7,6.81213312]
[1755815144404,0.02,4265.8,4265.7,13.55056466]
[1755815145570,0.02,4265.8,4265.7,14.21056466]
[1755815146377,1e-08,4265.8,4265.7,16.01356466]
[1755815146577,1e-08,4265.8,4265.7,16.13116466]
[1755815146887,1e-08,4265.8,4265.7,20.06616466]
[1755815147889,1e-08,4266.1,4266.0,3.00411626]
[1755815148092,1e-08,4266.1,4266.0,10.37875742]
[1755815148319,1e-08,4266.1,4266.0,10.82041626]
[1755815148610,1e-08,4266.1,4266.0,10.91436726]
[1755815150411,3.934,4268.2,4266.0,10.91436726]
[1755815150412,1.80841691,4268.4,4267.0,0.66]
[1755815150614,1.80841691,4268.4,4267.0,16.9980341]
[1755815150799,1.80841691,4268.4,4267.0,17.55649844]
[1755815151114,1e-08,4267.1,4267.0,18.26096444]
[1755815151609,1.80841691,4268.4,4267.7,6.00318251]
[1755815152012,1.80841691,4268.4,4267.7,6.30178251]
[1755815152695,1.80841691,4268.4,4267.7,7.00624851]
[1755815152881,1.80841691,4268.4,4267.7,7.47134851]
[1755815154011,1.80841691,4268.4,4267.7,11.40534851]
[1755815156198,0.00541691,4268.4,4267.7,11.40534851]
[1755815157508,0.00541691,4268.4,4267.7,11.58348004]
[1755815160238,0.3265,4267.8,4267.7,6.22578004]
[1755815160383,0.3265,4267.8,4267.7,10.15878004]
[1755815160715,0.02,4267.8,4267.7,10.15878004]
[1755815161229,0.02,4267.8,4267.7,10.81878004]
[1755815161436,0.02,4267.8,4267.7,11.11738004]
[1755815163914,0.02,4267.8,4267.7,10.81878004]
[1755815164087,0.2056,4267.8,4267.7,10.81878004]
[1755815165193,0.02,4267.8,4267.7,10.81878004]
[1755815165885,0.02,4267.8,4267.7,11.11738004]
[1755815166085,0.02,4267.8,4267.7,10.81878004]
[1755815166316,0.3265,4267.8,4267.7,10.81878004]
[1755815166617,0.3265,4267.8,4267.7,6.88578004]
[1755815166819,0.3265,4267.8,4267.7,10.15778004]
[1755815168215,0.6663,4267.8,4267.7,6.22578004]
[1755815168605,0.6663,4267.8,4267.7,0.88259753]
[1755815169115,0.6663,4267.8,4267.7,3.88259753]
[1755815169320,0.6663,4267.8,4267.7,0.88259753]
[1755815169491,0.6663,4267.8,4267.7,0.17813153]
[1755815169686,0.6663,4267.8,4267.4,0.6663]
[1755815169891,0.3398,4267.7,4267.4,0.6663]
[1755815170103,0.3068,4267.5,4267.4,3.00964723]
[1755815170284,0.6463,4267.5,4267.4,0.6663]
[1755815171120,0.6463,4267.5,4267.1,2.35451177]
[1755815171325,0.3068,4267.5,4267.2,0.704663]
[1755815171491,0.3068,4267.5,4267.1,2.52623884]
[1755815171820,0.3068,4267.5,4267.1,0.18272885]
[1755815171991,0.3068,4267.5,4267.3,2.3433624]
[1755815173309,0.3068,4267.5,4267.4,2.34334723]
[1755815174497,0.02,4267.8,4267.7,2.34318251]
[1755815174764,0.3293,4267.8,4267.7,2.34318251]
[1755815175422,0.02,4267.8,4267.7,2.34318251]
[1755815176016,0.2387,4267.8,4267.7,6.04776251]
[1755815176924,0.02,4267.8,4267.7,6.04776251]
[1755815178018,0.24,4267.8,4267.7,6.04776251]
[1755815178848,0.02,4267.8,4267.7,6.34746251]
[1755815179048,0.02,4267.8,4267.7,6.81656251]
[1755815180119,0.02,4267.8,4267.7,6.34746251]
[1755815180855,0.02,4267.8,4267.7,6.04776251]
[1755815181357,0.02,4267.8,4267.7,6.34746251]
[1755815182850,0.02,4267.8,4267.7,3.70458]
[1755815182851,0.4469,4267.8,4267.7,3.70458]
[1755815183022,0.4469,4267.8,4267.1,0.17172885]
[1755815183348,0.4469,4267.8,4267.4,0.70465]
[1755815184261,0.4226,4267.7,4267.0,2.34353035]
[1755815184435,0.0085,4267.1,4266.9,2.3436205]
[1755815184841,0.0085,4267.1,4267.0,2.3435669]
[1755815185164,0.0085,4267.1,4266.9,0.4226]
[1755815185329,0.0085,4267.1,4266.7,2.34371629]
[1755815185532,0.0085,4267.1,4267.0,0.4184]
[1755815186372,0.0085,4267.1,4267.0,2.7619669]
[1755815187037,0.02,4267.8,4267.1,2.3435035]
[1755815187348,0.02,4267.8,4267.0,0.4294]
[1755815187349,0.0023,4267.2,4267.0,0.4294]
[1755815189402,0.0023,4267.2,4267.1,3.0]
[1755815189900,0.0023,4267.2,4267.0,0.4294]
[1755815191252,0.021,4267.8,4267.7,2.34318251]
[1755815191453,0.021,4267.8,4267.7,5.64288251]
[1755815191751,0.042,4267.8,4267.7,3.0]
[1755815191952,0.4668,4267.8,4267.7,3.093957]
[1755815192583,0.4668,4267.8,4267.7,3.0]
[1755815193880,4.4378,4267.8,4267.7,3.0]
[1755815198278,4.009,4267.8,4267.7,3.0]
[1755815200683,0.042,4267.8,4267.7,3.0]
[1755815200984,3.986,4267.8,4267.7,3.0]
[1755815202485,3.986,4267.8,4267.7,3.3091]
[1755815202685,3.986,4267.8,4267.7,3.0]
[1755815203284,3.986,4267.8,4267.7,3.3091]
[1755815204481,0.021,4267.8,4267.7,3.3091]
[1755815204683,3.987,4267.8,4267.7,3.7553]
[1755815205058,0.021,4267.8,4267.7,3.7553]
[1755815205285,3.986,4267.8,4267.7,3.7553]
[1755815205508,3.986,4267.8,4267.7,4.459918]
[1755815206356,4.2841,4267.8,4267.7,3.704618]
[1755815206578,4.2841,4267.8,4267.7,3.0]
[1755815208974,3.986,4267.8,4267.7,3.3091]
[1755815210492,3.985,4267.8,4267.7,3.0]
[1755815211109,3.985,4267.8,4267.7,3.3091]
[1755815211760,0.021,4267.8,4267.7,3.3091]
[1755815211995,0.021,4267.8,4267.7,3.7553]
[1755815212288,3.984,4267.8,4267.7,3.7553]
[1755815212797,3.984,4267.8,4267.7,3.3091]
[1755815214493,0.021,4267.8,4267.7,3.3091]
[1755815214890,3.982,4267.8,4267.7,3.7553]
[1755815215591,3.981,4267.8,4267.7,4.459969]
[1755815216998,3.981,4267.8,4267.7,3.7553]
[1755815217201,3.98,4267.8,4267.7,3.7553]
[1755815218196,3.98,4267.8,4267.7,3.3091]
[1755815218595,3.98,4267.8,4267.7,3.0]
[1755815219374,3.98,4267.8,4267.7,3.70467]
[1755815219800,3.98,4267.8,4267.7,4.01377]
[1755815220521,3.979,4267.8,4267.7,4.01377]
[1755815220686,3.979,4267.8,4267.7,4.45997]
[1755815221588,3.979,4267.8,4267.7,3.70467]
[1755815222275,3.979,4267.8,4267.7,4.01377]
[1755815223912,0.021,4267.8,4267.7,3.70467]
[1755815224114,3.977,4267.8,4267.7,3.70467]
[1755815224500,3.977,4267.8,4267.7,4.01377]
[1755815225508,4.1612,4267.8,4267.7,3.0]
[1755815225916,4.6221,4267.8,4267.7,3.0]
[1755815228137,4.6247,4267.8,4267.7,3.0]
[1755815232115,4.1612,4267.8,4267.7,3.0]
[1755815232710,4.6246,4267.8,4267.7,3.0]
[1755815232909,4.6246,4267.8,4267.1,0.011]
[1755815233418,4.1612,4267.8,4267.1,0.011]
[1755815234639,4.6246,4267.8,4267.1,0.011]
[1755815240743,0.6686,4267.8,4267.1,0.011]
[1755815241045,3.947,4267.7,4267.1,0.011]
[1755815241412,0.4844,4267.8,4267.1,0.011]
[1755815241611,3.947,4267.7,4267.1,0.011]
[1755815241940,0.4844,4267.8,4267.1,0.011]
[1755815242116,3.946,4267.6,4267.1,0.011]
[1755815243656,4.4095,4267.6,4267.1,0.011]
[1755815245350,3.946,4267.6,4267.1,0.011]
[1755815246849,4.407,4267.6,4267.1,0.011]
[1755815247414,3.946,4267.6,4267.1,0.011]
[1755815249447,1.803,4267.5,4267.1,0.011]
[1755815253258,0.2932,4267.2,4267.1,0.011]
[1755815253456,4.2332,4267.2,4267.1,0.011]
[1755815256136,1.803,4267.5,4267.1,0.3054]
[1755815256341,3.939,4267.6,4267.2,0.4313]
[1755815256544,3.939,4267.6,4267.5,0.2944]
[1755815256745,3.939,4267.6,4267.5,0.7257]
[1755815257331,3.939,4267.6,4267.5,1.430374]
[1755815259164,3.939,4267.6,4267.5,0.999074]
[1755815259832,3.939,4267.6,4267.5,1.428674]
[1755815260733,4.2546,4267.6,4267.5,0.704674]
[1755815261650,3.939,4267.6,4267.5,0.704674]
[1755815266277,3.95,4267.6,4267.5,0.704674]
[1755815266573,3.9545,4267.6,4267.5,0.704674]
[1755815268378,3.95,4267.6,4267.5,0.704674]
[1755815268568,0.021,4267.8,4267.5,0.704674]
[1755815268767,3.948,4267.7,4267.5,0.704674]
[1755815269378,0.021,4267.8,4267.5,0.704674]
[1755815269590,3.947,4267.7,4267.5,0.704674]
[1755815270378,3.948,4267.7,4267.5,0.704674]
[1755815274460,5.751,4267.7,4267.5,0.704674]
[1755815275981,1.804,4267.7,4267.5,0.704674]
[1755815276194,1.804,4267.7,4267.6,0.734]
[1755815276373,5.747,4267.7,4267.6,0.734]
[1755815277464,5.747,4267.7,4267.6,1.438714]
[1755815278691,2.0013,4267.7,4267.6,0.704714]
[1755815278986,6.3923,4267.7,4267.1,0.011]
[1755815279359,6.3923,4267.7,4267.1,0.715714]
[1755815285572,5.9443,4267.7,4267.1,0.715714]
[1755815286202,6.3948,4267.7,4267.1,0.715714]
[1755815286907,6.3948,4267.7,4267.1,0.011]
[1755815287299,6.3948,4267.7,4267.2,0.704822]
[1755815287517,5.9443,4267.7,4267.2,0.704822]
[1755815287720,0.4504,4267.6,4267.2,0.704822]
[1755815289416,5.747,4267.7,4267.2,0.704822]
[1755815289618,6.2027,4267.7,4267.2,0.704822]
[1755815298132,5.747,4267.7,4267.2,0.704822]
[1755815305647,3.938,4267.6,4267.2,0.704822]
[1755815305855,3.938,4267.6,4267.3,0.4565]
[1755815307268,3.938,4267.6,4267.4,0.704822]
[1755815308058,1.803,4267.5,4267.4,0.704822]
[1755815311551,1.803,4267.5,4267.4,1.003922]
[1755815312153,1.803,4267.5,4267.4,0.704822]
[1755815318055,1.803,4267.5,4267.4,1.003922]
[1755815318262,5.741,4267.5,4267.4,1.466722]
[1755815318670,5.9182,4267.5,4267.4,0.704822]
[1755815318882,7.11328819,4267.5,4267.1,0.011]
[1755815319046,5.7249678,4267.2,4267.1,0.011]
[1755815319379,10.81855098,4267.2,4267.1,0.011]
[1755815319540,11.28345098,4267.2,4267.1,0.011]
[1755815319980,11.94345098,4267.2,4267.1,0.011]
[1755815320179,11.94327642,4267.2,4267.1,0.011]
[1755815320544,11.94252308,4267.2,4267.1,0.011]
[1755815320840,11.81053708,4267.2,4267.1,0.011]
[1755815321850,11.94237026,4267.2,4267.1,0.011]
[1755815322977,42.5753822,4267.2,4267.1,0.011]
[1755815323142,42.57503467,4267.2,4267.1,0.011]
[1755815324244,41.94202273,4267.2,4267.1,0.011]
[1755815324578,42.96024903,4267.2,4267.1,0.011]
[1755815325153,42.95924488,4267.2,4267.1,0.011]
[1755815326184,42.95864649,4267.2,4267.1,0.011]
[1755815326487,42.95862191,4267.2,4267.1,0.011]
[1755815326887,42.95858274,4267.2,4267.1,0.011]
[1755815332305,12.95858274,4267.2,4267.1,0.011]
[1755815332973,42.95858274,4267.2,4267.1,0.011]
[1755815335395,38.80130815,4267.2,4267.1,0.011]
[1755815335579,42.95901809,4267.2,4267.1,0.011]
[1755815336195,42.82767977,4267.2,4267.1,0.011]
[1755815336496,42.95902186,4267.2,4267.1,0.011]
[1755815340295,42.49412186,4267.2,4267.1,0.011]
[1755815341098,42.49417438,4267.2,4267.1,0.011]
[1755815342927,42.49317438,4267.2,4267.1,0.011]
[1755815343685,12.27438544,4267.2,4267.1,0.011]
[1755815343930,42.49355689,4267.2,4267.1,0.011]
[1755815344430,42.49355679,4267.2,4267.1,0.011]
[1755815344788,49.48355679,4267.2,4267.1,0.011]
[1755815345403,50.11531354,4267.2,4267.1,0.011]
[1755815346286,54.20106411,4267.2,4267.1,0.011]
[1755815346688,50.26306411,4267.2,4267.1,0.011]
[1755815346895,54.20106411,4267.2,4267.1,0.011]
[1755815347709,48.4707134,4267.2,4267.1,0.011]
[1755815348795,18.4707134,4267.2,4267.1,0.011]
[1755815349227,48.4707134,4267.2,4267.1,0.011]
[1755815349790,18.4707134,4267.2,4267.1,0.011]
[1755815350319,48.4707134,4267.2,4267.1,0.011]
[1755815350916,48.2906134,4267.2,4267.1,0.2997]
[1755815351297,49.56687021,4267.2,4267.1,0.011]
[1755815351604,55.20487021,4267.2,4267.1,0.011]
[1755815351813,53.9331134,4267.2,4267.1,0.011]
[1755815352195,53.9286134,4267.2,4267.1,0.011]
[1755815352892,53.57793918,4267.2,4267.1,0.011]
[1755815353128,53.93032971,4267.2,4267.1,0.011]
[1755815353333,51.26408652,4267.2,4267.1,0.011]
[1755815353497,55.20208652,4267.2,4267.1,0.011]
[1755815353697,53.93032971,4267.2,4267.1,0.011]
[1755815353897,23.93032971,4267.2,4267.1,0.011]
[1755815354116,53.93032971,4267.2,4267.1,0.011]
[1755815354524,53.93132971,4267.2,4267.1,0.011]
[1755815354710,49.99332971,4267.2,4267.1,0.2997]
[1755815354909,53.93132971,4267.2,4267.1,0.2997]
[1755815355096,53.93132971,4267.2,4267.1,0.7321]
[1755815356014,53.93132971,4267.2,4267.1,0.2997]
[1755815357322,49.99332971,4267.2,4267.1,0.2997]
[1755815357525,53.93132971,4267.2,4267.1,0.2997]
[1755815359034,23.93132971,4267.2,4267.1,0.2997]
[1755815359238,53.93130566,4267.2,4267.1,0.2997]
[1755815361235,55.73530566,4267.2,4267.1,0.2997]
[1755815361838,51.79730566,4267.2,4267.1,0.2997]
[1755815362036,55.73530566,4267.2,4267.1,0.2997]
[1755815362239,51.44493918,4267.2,4267.1,0.2997]
[1755815362439,55.73527532,4267.2,4267.1,0.2997]
[1755815362735,51.79727532,4267.2,4267.1,0.2997]
[1755815362937,55.73427532,4267.2,4267.1,0.2997]
[1755815363138,25.73427532,4267.2,4267.1,0.2997]
[1755815363439,55.73427532,4267.2,4267.1,0.2997]
[1755815365441,51.79727109,4267.2,4267.1,0.2997]
[1755815365737,55.73427109,4267.2,4267.1,0.7321]
[1755815366105,55.73427109,4267.2,4267.1,0.011]
[1755815367438,55.44326569,4267.2,4267.1,0.011]
[1755815367624,57.2224017,4267.2,4267.1,0.011]
[1755815368025,55.95064489,4267.2,4267.1,0.011]
[1755815368332,57.09027988,4267.2,4267.1,0.011]
[1755815368540,57.22240998,4267.2,4267.1,0.011]
[1755815371046,57.09028777,4267.2,4267.1,0.011]
[1755815371251,27.22241856,4267.2,4267.1,0.011]
[1755815371447,57.22241856,4267.2,4267.1,0.011]
[1755815371623,57.00220158,4267.2,4267.1,0.011]
[1755815371953,57.22242124,4267.2,4267.1,0.011]
[1755815372647,57.65562124,4267.2,4267.1,0.011]
[1755815372854,0.66,4267.1,4267.0,0.011]
[1755815373051,6.39035071,4266.7,4266.6,0.011]
[1755815373348,42.32580571,4266.7,4266.6,0.011]
[1755815375550,44.12980571,4266.7,4266.6,0.011]
[1755815377242,43.28428136,4266.7,4266.6,0.011]
[1755815377454,50.27428136,4266.7,4266.6,0.011]
[1755815380273,56.00463207,4266.7,4266.6,0.011]
[1755815380967,56.00439875,4266.7,4266.6,0.011]